[Event "Titled Tuesday Blitz December 7 2021"]
[White "Yang, Kaiqi"]
[Black "Shipov, Sergei"]
[WhiteFideId "8604398"]
[BlackFideId "4113624"]
[WhiteElo "2373"]
[BlackElo "2759"]
[Result "0-1"]
[Round "03"]
[TimeControl "180+1"]
[Date "2021.12.07"]
[WhiteClock "0:00:02"]
[BlackClock "0:01:15"]

1. e4 {[%clk 0:03:00]}  e6 {[%clk 0:02:59]} 2. d4 {[%clk 0:02:59]}  d5 {[%clk 0:02:58]} 3. e5 {[%clk 0:03:00]}  c5 {[%clk 0:02:58]} 4. c3 {[%clk 0:03:00]}  Nc6 {[%clk 0:02:57]} 5. Nf3 {[%clk 0:03:00]}  Bd7 {[%clk 0:02:57]} 6. Bd3 {[%clk 0:03:00]}  cxd4 {[%clk 0:02:58]} 7. O-O {[%clk 0:02:57]}  Qb6 {[%clk 0:02:37]} 8. Re1 {[%clk 0:02:57]}  Nge7 {[%clk 0:02:24]} 9. h4 {[%clk 0:02:56]}  Rc8 {[%clk 0:02:07]} 10. h5 {[%clk 0:02:53]}  h6 {[%clk 0:02:04]} 11. Nbd2 {[%clk 0:02:42]}  dxc3 {[%clk 0:02:04]} 12. bxc3 {[%clk 0:02:43]}  Na5 {[%clk 0:02:02]} 13. Rb1 {[%clk 0:02:23]}  Qc7 {[%clk 0:02:02]} 14. Nb3 {[%clk 0:02:07]}  Nc4 {[%clk 0:01:55]} 15. Nbd4 {[%clk 0:02:02]}  a6 {[%clk 0:01:55]} 16. Qe2 {[%clk 0:01:35]}  b5 {[%clk 0:01:53]} 17. Bf4 {[%clk 0:01:28]}  Nb6 {[%clk 0:01:53]} 18. Rec1 {[%clk 0:01:02]}  Na4 {[%clk 0:01:51]} 19. Bd2 {[%clk 0:01:01]}  Nc6 {[%clk 0:01:51]} 20. Qe3 {[%clk 0:00:31]}  Na5 {[%clk 0:01:49]} 21. Qf4 {[%clk 0:00:19]}  Nc4 {[%clk 0:01:49]} 22. Be1 {[%clk 0:00:17]}  Ba3 {[%clk 0:01:45]} 23. Rc2 {[%clk 0:00:17]}  Nc5 {[%clk 0:01:43]} 24. Bf1 {[%clk 0:00:16]}  Ne4 {[%clk 0:01:42]} 25. Qg4 {[%clk 0:00:15]}  Bf8 {[%clk 0:01:39]} 26. Rb3 {[%clk 0:00:13]}  Nxe5 {[%clk 0:01:35]} 27. Nxe5 {[%clk 0:00:13]}  Qxe5 {[%clk 0:01:36]} 28. f3 {[%clk 0:00:10]}  Nf6 {[%clk 0:01:36]} 29. Qh4 {[%clk 0:00:09]}  Bd6 {[%clk 0:01:33]} 30. g4 {[%clk 0:00:08]}  O-O {[%clk 0:01:20]} 31. Re2 {[%clk 0:00:08]}  Qf4 {[%clk 0:01:21]} 32. Bd2 {[%clk 0:00:08]}  Qg3+ {[%clk 0:01:21]} 33. Qxg3 {[%clk 0:00:08]}  Bxg3 {[%clk 0:01:21]} 34. Kg2 {[%clk 0:00:08]}  Bd6 {[%clk 0:01:21]} 35. Re1 {[%clk 0:00:06]}  Rc7 {[%clk 0:01:19]} 36. Bd3 {[%clk 0:00:06]}  Rfc8 {[%clk 0:01:19]} 37. f4 {[%clk 0:00:07]}  Nxg4 {[%clk 0:01:18]} 38. Kf3 {[%clk 0:00:07]}  Nf6 {[%clk 0:01:18]} 39. Rg1 {[%clk 0:00:07]}  Kf8 {[%clk 0:01:18]} 40. Rbb1 {[%clk 0:00:07]}  Nxh5 {[%clk 0:01:18]} 41. Rg2 {[%clk 0:00:06]}  Rxc3 {[%clk 0:01:16]} 42. Bxc3 {[%clk 0:00:06]}  Rxc3 {[%clk 0:01:17]} 43. Rd2 {[%clk 0:00:04]}  Nxf4 {[%clk 0:01:17]} 44. Ke3 {[%clk 0:00:03]}  e5 {[%clk 0:01:17]} 45. Ne2 {[%clk 0:00:02]}  Nxe2 {[%clk 0:01:16]} 46. Kxe2 {[%clk 0:00:02]}  Bg4+ {[%clk 0:01:15]} 0-1


[Site "https://www.chess.com"]

[Event "Titled Tuesday Blitz December 7 2021"]
[White "Zarubitski, Viachaslau"]
[Black "Navalgund, Niranjan"]
[WhiteFideId "13509373"]
[BlackFideId "5030854"]
[WhiteElo "2325"]
[BlackElo "2290"]
[Result "1/2-1/2"]
[Round "03"]
[TimeControl "180+1"]
[Date "2021.12.07"]
[WhiteClock "0:00:05"]
[BlackClock "0:00:16"]

1. Nf3 {[%clk 0:01:43]}  Nf6 {[%clk 0:02:38]} 2. g3 {[%clk 0:01:42]}  b6 {[%clk 0:02:34]} 3. Bg2 {[%clk 0:01:43]}  Bb7 {[%clk 0:02:34]} 4. O-O {[%clk 0:01:41]}  c5 {[%clk 0:02:33]} 5. c3 {[%clk 0:01:37]}  g6 {[%clk 0:02:33]} 6. d4 {[%clk 0:01:37]}  Bg7 {[%clk 0:02:32]} 7. Bg5 {[%clk 0:01:35]}  O-O {[%clk 0:02:32]} 8. Bxf6 {[%clk 0:01:33]}  Bxf6 {[%clk 0:02:32]} 9. e3 {[%clk 0:01:34]}  d6 {[%clk 0:02:31]} 10. Nbd2 {[%clk 0:01:34]}  Nd7 {[%clk 0:02:31]} 11. a4 {[%clk 0:01:31]}  a6 {[%clk 0:02:30]} 12. Re1 {[%clk 0:01:31]}  Bg7 {[%clk 0:02:30]} 13. Qb3 {[%clk 0:01:29]}  Rb8 {[%clk 0:02:24]} 14. Qa3 {[%clk 0:01:24]}  b5 {[%clk 0:02:21]} 15. b4 {[%clk 0:01:19]}  Qc7 {[%clk 0:02:13]} 16. axb5 {[%clk 0:00:54]}  axb5 {[%clk 0:02:10]} 17. Qa5 {[%clk 0:00:54]}  Qc8 {[%clk 0:02:04]} 18. Rec1 {[%clk 0:00:21]}  Bc6 {[%clk 0:02:04]} 19. Qa3 {[%clk 0:00:21]}  c4 {[%clk 0:01:56]} 20. Qb2 {[%clk 0:00:20]}  Nb6 {[%clk 0:01:53]} 21. Qc2 {[%clk 0:00:18]}  Qb7 {[%clk 0:01:46]} 22. Re1 {[%clk 0:00:11]}  Ra8 {[%clk 0:01:40]} 23. e4 {[%clk 0:00:09]}  Rxa1 {[%clk 0:01:40]} 24. Rxa1 {[%clk 0:00:10]}  e6 {[%clk 0:01:39]} 25. Re1 {[%clk 0:00:10]}  Ra8 {[%clk 0:01:38]} 26. h4 {[%clk 0:00:10]}  Qa6 {[%clk 0:01:37]} 27. h5 {[%clk 0:00:06]}  Qa2 {[%clk 0:01:36]} 28. Qc1 {[%clk 0:00:03]}  Na4 {[%clk 0:01:35]} 29. hxg6 {[%clk 0:00:02]}  hxg6 {[%clk 0:01:35]} 30. Ng5 {[%clk 0:00:03]}  Bh6 {[%clk 0:01:33]} 31. Ndf3 {[%clk 0:00:02]}  Qb2 {[%clk 0:01:31]} 32. Qxb2 {[%clk 0:00:02]}  Nxb2 {[%clk 0:01:32]} 33. d5 {[%clk 0:00:02]}  exd5 {[%clk 0:01:30]} 34. Nd4 {[%clk 0:00:02]}  Bd7 {[%clk 0:01:30]} 35. f4 {[%clk 0:00:02]}  Nd3 {[%clk 0:01:29]} 36. Rb1 {[%clk 0:00:01]}  dxe4 {[%clk 0:01:26]} 37. Nxe4 {[%clk 0:00:01]}  Kg7 {[%clk 0:01:11]} 38. Nxd6 {[%clk 0:00:01]}  Ra2 {[%clk 0:01:10]} 39. N6xb5 {[%clk 0:00:01]}  g5 {[%clk 0:01:03]} 40. Nd6 {[%clk 0:00:02]}  gxf4 {[%clk 0:01:02]} 41. N6f5+ {[%clk 0:00:02]}  Kg6 {[%clk 0:00:59]} 42. Be4 {[%clk 0:00:02]}  Kg5 {[%clk 0:00:58]} 43. Nxh6 {[%clk 0:00:03]}  Kxh6 {[%clk 0:00:58]} 44. gxf4 {[%clk 0:00:03]}  Nxf4 {[%clk 0:00:57]} 45. b5 {[%clk 0:00:03]}  f5 {[%clk 0:00:49]} 46. Bc2 {[%clk 0:00:03]}  Bc8 {[%clk 0:00:42]} 47. b6 {[%clk 0:00:03]}  Bb7 {[%clk 0:00:42]} 48. Nxf5+ {[%clk 0:00:03]}  Kg5 {[%clk 0:00:42]} 49. Nd4 {[%clk 0:00:04]}  Kh4 {[%clk 0:00:39]} 50. Kf2 {[%clk 0:00:03]}  Nd5 {[%clk 0:00:33]} 51. Nf3+ {[%clk 0:00:03]}  Kg4 {[%clk 0:00:31]} 52. Nd4 {[%clk 0:00:04]}  Nxc3 {[%clk 0:00:30]} 53. Rb4 {[%clk 0:00:03]}  Ne4+ {[%clk 0:00:27]} 54. Ke3 {[%clk 0:00:03]}  Nd6 {[%clk 0:00:27]} 55. Rb1 {[%clk 0:00:03]}  Ra3+ {[%clk 0:00:26]} 56. Kd2 {[%clk 0:00:03]}  c3+ {[%clk 0:00:26]} 57. Ke3 {[%clk 0:00:02]}  Nc4+ {[%clk 0:00:21]} 58. Kd3 {[%clk 0:00:03]}  Ba6 {[%clk 0:00:21]} 59. Ke4 {[%clk 0:00:01]}  Nd2+ {[%clk 0:00:21]} 60. Kd5 {[%clk 0:00:02]}  Nxb1 {[%clk 0:00:21]} 61. Bxb1 {[%clk 0:00:03]}  Ra1 {[%clk 0:00:20]} 62. Bf5+ {[%clk 0:00:02]}  Kf4 {[%clk 0:00:21]} 63. Bg6 {[%clk 0:00:02]}  Bb7+ {[%clk 0:00:21]} 64. Kd6 {[%clk 0:00:02]}  Rd1 {[%clk 0:00:21]} 65. Kc5 {[%clk 0:00:02]}  Rc1 {[%clk 0:00:17]} 66. Ne2+ {[%clk 0:00:02]}  Kg5 {[%clk 0:00:16]} 67. Nxc1 {[%clk 0:00:03]}  Kxg6 {[%clk 0:00:16]} 68. Kd6 {[%clk 0:00:01]}  Kf7 {[%clk 0:00:15]} 69. Kc7 {[%clk 0:00:02]}  Be4 {[%clk 0:00:15]} 70. Ne2 {[%clk 0:00:01]}  c2 {[%clk 0:00:15]} 71. b7 {[%clk 0:00:02]}  Bxb7 {[%clk 0:00:14]} 72. Kxb7 {[%clk 0:00:03]}  Ke6 {[%clk 0:00:15]} 73. Kc6 {[%clk 0:00:03]}  Ke5 {[%clk 0:00:14]} 74. Kc5 {[%clk 0:00:04]}  Ke4 {[%clk 0:00:15]} 75. Kc4 {[%clk 0:00:04]}  c1=Q+ {[%clk 0:00:16]} 76. Nxc1 {[%clk 0:00:05]} 1/2-1/2


[Site "https://www.chess.com"]

[Event "Titled Tuesday Blitz December 7 2021"]
[White "Zierk, Steven"]
[Black "Najdin, Danil"]
[WhiteFideId "2034255"]
[BlackFideId "4172426"]
[WhiteElo "2494"]
[BlackElo "2240"]
[Result "1-0"]
[Round "03"]
[TimeControl "180+1"]
[Date "2021.12.07"]
[WhiteClock "0:01:30"]
[BlackClock "0:01:08"]

1. b3 {[%clk 0:03:00]}  e5 {[%clk 0:02:59]} 2. Bb2 {[%clk 0:03:01]}  Nc6 {[%clk 0:02:59]} 3. c4 {[%clk 0:03:00]}  Nf6 {[%clk 0:02:58]} 4. e3 {[%clk 0:03:01]}  d5 {[%clk 0:02:56]} 5. cxd5 {[%clk 0:03:02]}  Nxd5 {[%clk 0:02:57]} 6. a3 {[%clk 0:03:02]}  Be6 {[%clk 0:02:51]} 7. Qc2 {[%clk 0:02:56]}  a6 {[%clk 0:02:49]} 8. Nf3 {[%clk 0:02:54]}  f6 {[%clk 0:02:48]} 9. b4 {[%clk 0:02:36]}  Be7 {[%clk 0:02:46]} 10. Bc4 {[%clk 0:02:30]}  Qd7 {[%clk 0:02:46]} 11. d4 {[%clk 0:02:23]}  exd4 {[%clk 0:02:41]} 12. Nxd4 {[%clk 0:02:23]}  Nxd4 {[%clk 0:02:41]} 13. Bxd4 {[%clk 0:02:24]}  c6 {[%clk 0:02:21]} 14. Nd2 {[%clk 0:02:20]}  Nc7 {[%clk 0:02:20]} 15. Bd3 {[%clk 0:02:15]}  Nb5 {[%clk 0:01:56]} 16. Nf3 {[%clk 0:02:12]}  Nxd4 {[%clk 0:01:49]} 17. Nxd4 {[%clk 0:02:12]}  g6 {[%clk 0:01:49]} 18. O-O {[%clk 0:02:04]}  Bf7 {[%clk 0:01:45]} 19. Rfd1 {[%clk 0:01:50]}  O-O {[%clk 0:01:43]} 20. Bc4 {[%clk 0:01:48]}  Rad8 {[%clk 0:01:31]} 21. Ne6 {[%clk 0:01:41]}  Qc8 {[%clk 0:01:28]} 22. Rxd8 {[%clk 0:01:35]}  Bxd8 {[%clk 0:01:24]} 23. Nxf8 {[%clk 0:01:34]}  Kxf8 {[%clk 0:01:23]} 24. Bxf7 {[%clk 0:01:32]}  Kxf7 {[%clk 0:01:24]} 25. Rd1 {[%clk 0:01:33]}  Be7 {[%clk 0:01:17]} 26. Qc4+ {[%clk 0:01:32]}  Qe6 {[%clk 0:01:18]} 27. Qxe6+ {[%clk 0:01:32]}  Kxe6 {[%clk 0:01:19]} 28. Kf1 {[%clk 0:01:30]}  c5 {[%clk 0:01:18]} 29. bxc5 {[%clk 0:01:30]}  Bxc5 {[%clk 0:01:18]} 30. a4 {[%clk 0:01:31]}  Bd6 {[%clk 0:01:08]} 31. Rb1 {[%clk 0:01:30]} 1-0


[Site "https://www.chess.com"]

[Event "Titled Tuesday Blitz December 7 2021"]
[White "Akbas, Umut Ata"]
[Black "Bouget, Alexandre"]
[WhiteFideId "44572646"]
[BlackFideId "681318"]
[WhiteElo "1590"]
[BlackElo "2178"]
[Result "1-0"]
[Round "04"]
[TimeControl "180+1"]
[Date "2021.12.07"]
[WhiteClock "0:00:06"]
[BlackClock "0:00:03"]

1. e4 {[%clk 0:03:00]}  e6 {[%clk 0:02:51]} 2. d4 {[%clk 0:02:59]}  d5 {[%clk 0:02:51]} 3. exd5 {[%clk 0:03:00]}  exd5 {[%clk 0:02:50]} 4. Bd3 {[%clk 0:03:00]}  Nc6 {[%clk 0:02:50]} 5. c3 {[%clk 0:02:59]}  Nf6 {[%clk 0:02:49]} 6. Nf3 {[%clk 0:02:58]}  Bg4 {[%clk 0:02:48]} 7. Nbd2 {[%clk 0:02:53]}  Qd7 {[%clk 0:02:47]} 8. h3 {[%clk 0:02:52]}  Bh5 {[%clk 0:02:46]} 9. Nf1 {[%clk 0:02:48]}  O-O-O {[%clk 0:02:43]} 10. Be3 {[%clk 0:02:44]}  Bd6 {[%clk 0:02:37]} 11. Qc2 {[%clk 0:02:36]}  Kb8 {[%clk 0:02:23]} 12. g4 {[%clk 0:02:25]}  Bg6 {[%clk 0:02:12]} 13. O-O-O {[%clk 0:02:22]}  Rhe8 {[%clk 0:02:06]} 14. N1d2 {[%clk 0:02:15]}  Ne4 {[%clk 0:02:00]} 15. Nh4 {[%clk 0:02:06]}  Nxd2 {[%clk 0:01:26]} 16. Nxg6 {[%clk 0:01:57]}  Nc4 {[%clk 0:01:17]} 17. Bxc4 {[%clk 0:01:53]}  dxc4 {[%clk 0:01:18]} 18. Ne5 {[%clk 0:01:41]}  Bxe5 {[%clk 0:01:05]} 19. dxe5 {[%clk 0:01:42]}  Qe6 {[%clk 0:01:04]} 20. Rxd8+ {[%clk 0:00:57]}  Rxd8 {[%clk 0:01:02]} 21. Bg5 {[%clk 0:00:57]}  Rd3 {[%clk 0:00:58]} 22. Re1 {[%clk 0:00:44]}  f6 {[%clk 0:00:46]} 23. Bf4 {[%clk 0:00:41]}  fxe5 {[%clk 0:00:45]} 24. Bg3 {[%clk 0:00:35]}  Qd5 {[%clk 0:00:43]} 25. Qe2 {[%clk 0:00:31]}  e4 {[%clk 0:00:40]} 26. Bf4 {[%clk 0:00:20]}  b5 {[%clk 0:00:38]} 27. Qxe4 {[%clk 0:00:19]}  Rd1+ {[%clk 0:00:33]} 28. Kc2 {[%clk 0:00:19]}  Qd3+ {[%clk 0:00:14]} 29. Qxd3 {[%clk 0:00:18]}  Rxd3 {[%clk 0:00:15]} 30. Bg3 {[%clk 0:00:18]}  Kb7 {[%clk 0:00:10]} 31. Re8 {[%clk 0:00:18]}  Rd7 {[%clk 0:00:09]} 32. Rf8 {[%clk 0:00:18]}  g6 {[%clk 0:00:09]} 33. Rf6 {[%clk 0:00:18]}  Re7 {[%clk 0:00:08]} 34. a4 {[%clk 0:00:16]}  Re2+ {[%clk 0:00:07]} 35. Kb1 {[%clk 0:00:15]}  bxa4 {[%clk 0:00:06]} 36. Rf4 {[%clk 0:00:15]}  Ne5 {[%clk 0:00:05]} 37. Rd4 {[%clk 0:00:14]}  Nd3 {[%clk 0:00:04]} 38. Rxc4 {[%clk 0:00:15]}  Rxb2+ {[%clk 0:00:04]} 39. Ka1 {[%clk 0:00:15]}  a3 {[%clk 0:00:04]} 40. Ra4 {[%clk 0:00:14]}  Rb3 {[%clk 0:00:04]} 41. Ka2 {[%clk 0:00:08]}  Nc1+ {[%clk 0:00:04]} 42. Ka1 {[%clk 0:00:07]}  a2 {[%clk 0:00:03]} 43. Rb4+ {[%clk 0:00:06]} 1-0


[Site "https://www.chess.com"]

[Event "Titled Tuesday Blitz December 7 2021"]
[White "Baches Garcia, Guillermo"]
[Black "Belyakov, Bogdan"]
[WhiteFideId "2209764"]
[BlackFideId "24104795"]
[WhiteElo "2458"]
[BlackElo "2407"]
[Result "0-1"]
[Round "04"]
[TimeControl "180+1"]
[Date "2021.12.07"]
[WhiteClock "0:00:13"]
[BlackClock "0:00:28"]

1. e4 {[%clk 0:03:00]}  e5 {[%clk 0:02:59]} 2. Nf3 {[%clk 0:03:00]}  Nc6 {[%clk 0:02:59]} 3. Nc3 {[%clk 0:03:01]}  Nf6 {[%clk 0:02:59]} 4. d4 {[%clk 0:03:02]}  exd4 {[%clk 0:02:59]} 5. Nxd4 {[%clk 0:03:02]}  Bb4 {[%clk 0:02:59]} 6. Nxc6 {[%clk 0:03:02]}  bxc6 {[%clk 0:03:00]} 7. Bd3 {[%clk 0:03:03]}  d5 {[%clk 0:03:00]} 8. Bd2 {[%clk 0:03:03]}  O-O {[%clk 0:02:52]} 9. O-O {[%clk 0:03:03]}  Bxc3 {[%clk 0:02:49]} 10. Bxc3 {[%clk 0:03:04]}  Nxe4 {[%clk 0:02:49]} 11. Bxe4 {[%clk 0:03:04]}  dxe4 {[%clk 0:02:49]} 12. Qe2 {[%clk 0:03:05]}  Re8 {[%clk 0:02:38]} 13. Rad1 {[%clk 0:03:04]}  Qg5 {[%clk 0:02:38]} 14. Qe3 {[%clk 0:03:04]}  Qxe3 {[%clk 0:02:34]} 15. fxe3 {[%clk 0:03:04]}  Be6 {[%clk 0:02:34]} 16. a3 {[%clk 0:03:01]}  c5 {[%clk 0:02:33]} 17. Rf4 {[%clk 0:02:51]}  f5 {[%clk 0:02:32]} 18. h4 {[%clk 0:02:48]}  h5 {[%clk 0:02:28]} 19. Kh2 {[%clk 0:02:36]}  Rad8 {[%clk 0:02:26]} 20. Rff1 {[%clk 0:02:37]}  Kf7 {[%clk 0:02:21]} 21. Kg3 {[%clk 0:02:35]}  c6 {[%clk 0:02:14]} 22. Kf4 {[%clk 0:02:29]}  Rd5 {[%clk 0:02:14]} 23. Rd2 {[%clk 0:02:11]}  Rh8 {[%clk 0:02:08]} 24. Rxd5 {[%clk 0:01:34]}  cxd5 {[%clk 0:02:08]} 25. Ke5 {[%clk 0:01:34]}  Rd8 {[%clk 0:02:00]} 26. Rd1 {[%clk 0:01:26]}  g6 {[%clk 0:01:55]} 27. g3 {[%clk 0:01:25]}  Rd7 {[%clk 0:01:49]} 28. b4 {[%clk 0:01:20]}  cxb4 {[%clk 0:01:19]} 29. axb4 {[%clk 0:01:19]}  Rc7 {[%clk 0:01:19]} 30. Bd4 {[%clk 0:01:18]}  a6 {[%clk 0:01:12]} 31. Ra1 {[%clk 0:01:14]}  Bc8 {[%clk 0:01:07]} 32. c3 {[%clk 0:01:03]}  Bb7 {[%clk 0:01:07]} 33. Ra5 {[%clk 0:00:52]}  Rc6 {[%clk 0:01:07]} 34. Rc5 {[%clk 0:00:47]}  Re6+ {[%clk 0:01:06]} 35. Kf4 {[%clk 0:00:47]}  Bc6 {[%clk 0:01:07]} 36. Be5 {[%clk 0:00:43]}  Ke7 {[%clk 0:01:01]} 37. Bd4 {[%clk 0:00:43]}  Kd6 {[%clk 0:00:59]} 38. Bg7 {[%clk 0:00:43]}  Re8 {[%clk 0:00:43]} 39. Bd4 {[%clk 0:00:41]}  Re6 {[%clk 0:00:40]} 40. Bg7 {[%clk 0:00:41]}  Kd7 {[%clk 0:00:38]} 41. Bd4 {[%clk 0:00:41]}  Kc8 {[%clk 0:00:33]} 42. Bg7 {[%clk 0:00:40]}  Kb7 {[%clk 0:00:34]} 43. Bd4 {[%clk 0:00:39]}  Kc7 {[%clk 0:00:29]} 44. Bg7 {[%clk 0:00:39]}  Kd6 {[%clk 0:00:29]} 45. Bd4 {[%clk 0:00:39]}  Re8 {[%clk 0:00:28]} 46. Bg7 {[%clk 0:00:37]}  Bd7 {[%clk 0:00:28]} 47. Bd4 {[%clk 0:00:37]}  Ke6 {[%clk 0:00:27]} 48. Rc7 {[%clk 0:00:34]}  Rc8 {[%clk 0:00:26]} 49. Rxc8 {[%clk 0:00:33]}  Bxc8 {[%clk 0:00:27]} 50. Bc5 {[%clk 0:00:33]}  Bd7 {[%clk 0:00:27]} 51. Bd4 {[%clk 0:00:34]}  Be8 {[%clk 0:00:28]} 52. Bc5 {[%clk 0:00:34]}  Kd7 {[%clk 0:00:28]} 53. Bd4 {[%clk 0:00:34]}  Kc6 {[%clk 0:00:28]} 54. Be5 {[%clk 0:00:34]}  Kb5 {[%clk 0:00:28]} 55. Bd4 {[%clk 0:00:34]}  Kc4 {[%clk 0:00:29]} 56. Be5 {[%clk 0:00:35]}  Kd3 {[%clk 0:00:29]} 57. Bd4 {[%clk 0:00:35]}  Ke2 {[%clk 0:00:30]} 58. Be5 {[%clk 0:00:35]}  Kf2 {[%clk 0:00:30]} 59. Bd4 {[%clk 0:00:35]}  Kg2 {[%clk 0:00:31]} 60. Be5 {[%clk 0:00:35]}  Kh3 {[%clk 0:00:32]} 61. Bd4 {[%clk 0:00:35]}  Bd7 {[%clk 0:00:32]} 62. Be5 {[%clk 0:00:35]}  Bc6 {[%clk 0:00:32]} 63. Kg5 {[%clk 0:00:32]}  Be8 {[%clk 0:00:29]} 64. Bf4 {[%clk 0:00:30]}  Kg2 {[%clk 0:00:29]} 65. Kf6 {[%clk 0:00:30]}  Kf3 {[%clk 0:00:29]} 66. Ke6 {[%clk 0:00:30]}  Bc6 {[%clk 0:00:26]} 67. Kd6 {[%clk 0:00:30]}  Bb7 {[%clk 0:00:26]} 68. Kc7 {[%clk 0:00:30]}  Ba8 {[%clk 0:00:26]} 69. Kb6 {[%clk 0:00:30]}  Ke2 {[%clk 0:00:26]} 70. Kxa6 {[%clk 0:00:30]}  Kd3 {[%clk 0:00:26]} 71. b5 {[%clk 0:00:30]}  Kxc3 {[%clk 0:00:27]} 72. b6 {[%clk 0:00:28]}  d4 {[%clk 0:00:27]} 73. Be5 {[%clk 0:00:28]}  Kd3 {[%clk 0:00:26]} 74. Bxd4 {[%clk 0:00:28]}  Ke2 {[%clk 0:00:26]} 75. b7 {[%clk 0:00:13]}  Bxb7+ {[%clk 0:00:26]} 76. Kxb7 {[%clk 0:00:13]}  Kf3 {[%clk 0:00:27]} 77. Kc6 {[%clk 0:00:14]}  Kxg3 {[%clk 0:00:28]} 78. Kd5 {[%clk 0:00:14]}  Kxh4 {[%clk 0:00:28]} 79. Ke5 {[%clk 0:00:14]}  Kg4 {[%clk 0:00:28]} 80. Bc3 {[%clk 0:00:13]}  h4 {[%clk 0:00:28]} 0-1


[Site "https://www.chess.com"]

[Event "Titled Tuesday Blitz December 7 2021"]
[White "Baskin, Robert"]
[Black "Fajdetic, Hrvoje"]
[WhiteFideId "24662402"]
[BlackFideId "14501945"]
[WhiteElo "2488"]
[BlackElo "2140"]
[Result "1-0"]
[Round "04"]
[TimeControl "180+1"]
[Date "2021.12.07"]
[WhiteClock "0:00:12"]
[BlackClock "0:00:21"]

1. e4 {[%clk 0:03:00]}  e6 {[%clk 0:02:59]} 2. d4 {[%clk 0:02:59]}  d5 {[%clk 0:03:00]} 3. Nc3 {[%clk 0:02:58]}  dxe4 {[%clk 0:03:00]} 4. Nxe4 {[%clk 0:02:57]}  Nd7 {[%clk 0:03:01]} 5. Nf3 {[%clk 0:02:57]}  Ngf6 {[%clk 0:03:01]} 6. Bg5 {[%clk 0:02:52]}  Be7 {[%clk 0:03:00]} 7. Nxf6+ {[%clk 0:02:50]}  Bxf6 {[%clk 0:03:00]} 8. h4 {[%clk 0:02:50]}  h6 {[%clk 0:03:00]} 9. Bxf6 {[%clk 0:01:10]}  Qxf6 {[%clk 0:02:58]} 10. Qd2 {[%clk 0:01:07]}  c5 {[%clk 0:02:54]} 11. O-O-O {[%clk 0:00:59]}  a6 {[%clk 0:02:37]} 12. Qe3 {[%clk 0:00:51]}  cxd4 {[%clk 0:02:23]} 13. Rxd4 {[%clk 0:00:49]}  h5 {[%clk 0:02:12]} 14. Bd3 {[%clk 0:00:42]}  Nc5 {[%clk 0:02:03]} 15. Rd1 {[%clk 0:00:39]}  Nxd3+ {[%clk 0:02:02]} 16. R1xd3 {[%clk 0:00:35]}  O-O {[%clk 0:01:59]} 17. g4 {[%clk 0:00:33]}  hxg4 {[%clk 0:01:36]} 18. Ne5 {[%clk 0:00:32]}  Qh6 {[%clk 0:01:08]} 19. Qxh6 {[%clk 0:00:28]}  gxh6 {[%clk 0:01:09]} 20. Rxg4+ {[%clk 0:00:28]}  Kh7 {[%clk 0:01:06]} 21. Rdg3 {[%clk 0:00:27]}  b5 {[%clk 0:00:27]} 22. Rg7+ {[%clk 0:00:26]}  Kh8 {[%clk 0:00:27]} 23. Nxf7+ {[%clk 0:00:13]}  Rxf7 {[%clk 0:00:27]} 24. Rxf7 {[%clk 0:00:14]}  e5 {[%clk 0:00:23]} 25. Rf8+ {[%clk 0:00:13]}  Kh7 {[%clk 0:00:23]} 26. h5 {[%clk 0:00:13]}  Bb7 {[%clk 0:00:21]} 27. Rf7+ {[%clk 0:00:12]} 1-0


[Site "https://www.chess.com"]

[Event "Titled Tuesday Blitz December 7 2021"]
[White "Garagulya, Konstantin"]
[Black "Barria Zuniga, Daniel"]
[WhiteFideId "4128931"]
[BlackFideId "3400816"]
[WhiteElo "2329"]
[BlackElo "2414"]
[Result "1-0"]
[Round "04"]
[TimeControl "180+1"]
[Date "2021.12.07"]
[WhiteClock "0:00:11"]
[BlackClock "0:00:10"]

1. d4 {[%clk 0:03:00]}  d5 {[%clk 0:02:59]} 2. Nf3 {[%clk 0:02:59]}  c6 {[%clk 0:02:52]} 3. c4 {[%clk 0:02:58]}  dxc4 {[%clk 0:02:51]} 4. a4 {[%clk 0:02:57]}  e6 {[%clk 0:02:50]} 5. Na3 {[%clk 0:02:52]}  Bb4+ {[%clk 0:02:20]} 6. Bd2 {[%clk 0:02:50]}  Bxd2+ {[%clk 0:02:18]} 7. Qxd2 {[%clk 0:02:48]}  Qd5 {[%clk 0:02:11]} 8. Ne5 {[%clk 0:02:28]}  Nf6 {[%clk 0:01:53]} 9. f3 {[%clk 0:02:12]}  O-O {[%clk 0:01:52]} 10. e4 {[%clk 0:02:07]}  Qd6 {[%clk 0:01:45]} 11. Naxc4 {[%clk 0:01:50]}  Qe7 {[%clk 0:01:43]} 12. Be2 {[%clk 0:01:47]}  Rd8 {[%clk 0:01:43]} 13. Qe3 {[%clk 0:01:20]}  Na6 {[%clk 0:01:37]} 14. O-O {[%clk 0:01:20]}  Nb4 {[%clk 0:01:38]} 15. Rac1 {[%clk 0:01:16]}  b6 {[%clk 0:01:35]} 16. Rfd1 {[%clk 0:01:12]}  Bb7 {[%clk 0:01:31]} 17. a5 {[%clk 0:00:50]}  b5 {[%clk 0:01:17]} 18. Nd2 {[%clk 0:00:51]}  Nd7 {[%clk 0:00:56]} 19. Nxd7 {[%clk 0:00:49]}  Rxd7 {[%clk 0:00:57]} 20. Nb3 {[%clk 0:00:50]}  Na6 {[%clk 0:00:55]} 21. Nc5 {[%clk 0:00:44]}  Nxc5 {[%clk 0:00:55]} 22. dxc5 {[%clk 0:00:44]}  Rad8 {[%clk 0:00:51]} 23. b4 {[%clk 0:00:44]}  e5 {[%clk 0:00:49]} 24. g3 {[%clk 0:00:43]}  a6 {[%clk 0:00:49]} 25. Kf2 {[%clk 0:00:43]}  Bc8 {[%clk 0:00:49]} 26. Qc3 {[%clk 0:00:42]}  Kf8 {[%clk 0:00:48]} 27. Rxd7 {[%clk 0:00:40]}  Rxd7 {[%clk 0:00:47]} 28. Rd1 {[%clk 0:00:41]}  Rxd1 {[%clk 0:00:43]} 29. Bxd1 {[%clk 0:00:42]}  f6 {[%clk 0:00:43]} 30. Qd3 {[%clk 0:00:36]}  Be6 {[%clk 0:00:42]} 31. f4 {[%clk 0:00:28]}  Ke8 {[%clk 0:00:41]} 32. f5 {[%clk 0:00:23]}  Bc4 {[%clk 0:00:38]} 33. Qd2 {[%clk 0:00:23]}  Qd7 {[%clk 0:00:37]} 34. Qxd7+ {[%clk 0:00:22]}  Kxd7 {[%clk 0:00:37]} 35. Ke3 {[%clk 0:00:22]}  g6 {[%clk 0:00:35]} 36. fxg6 {[%clk 0:00:22]}  hxg6 {[%clk 0:00:35]} 37. h4 {[%clk 0:00:21]}  f5 {[%clk 0:00:29]} 38. exf5 {[%clk 0:00:21]}  gxf5 {[%clk 0:00:29]} 39. h5 {[%clk 0:00:17]}  Ke6 {[%clk 0:00:28]} 40. Bf3 {[%clk 0:00:16]}  e4 {[%clk 0:00:16]} 41. Bd1 {[%clk 0:00:16]}  Ke5 {[%clk 0:00:16]} 42. h6 {[%clk 0:00:16]}  Kf6 {[%clk 0:00:16]} 43. Kf4 {[%clk 0:00:16]}  Kg6 {[%clk 0:00:16]} 44. g4 {[%clk 0:00:11]}  fxg4 {[%clk 0:00:16]} 45. Bxg4 {[%clk 0:00:12]}  Kxh6 {[%clk 0:00:15]} 46. Bc8 {[%clk 0:00:11]}  Bd5 {[%clk 0:00:12]} 47. Bxa6 {[%clk 0:00:10]}  Kh5 {[%clk 0:00:08]} 48. Bb7 {[%clk 0:00:11]}  Kh4 {[%clk 0:00:08]} 49. a6 {[%clk 0:00:11]}  Kh3 {[%clk 0:00:09]} 50. a7 {[%clk 0:00:11]}  Kg2 {[%clk 0:00:10]} 51. Ke3 {[%clk 0:00:11]} 1-0


[Site "https://www.chess.com"]